[Event "Late-Titled-Tuesday-Blitz-May-28-2024"]
[Site "Chess.com"]
[Date "2024.05.28"]
[Round "4"]
[White "Itay121"]
[Black "glucolisis04"]
[Result "1-0"]
[WhiteElo "2538"]
[BlackElo "2270"]
[TimeControl "180+1"]
[EndTime "14:38:44 PDT"]
[Termination "Itay121 won by checkmate"]

1. Nc3 {[%clk 0:03:00.9]} 1... d5 {[%clk 0:02:54.9]} 2. e4 {[%clk 0:02:57.3]}
2... d4 {[%clk 0:02:54]} 3. Nce2 {[%clk 0:02:56]} 3... c5 {[%clk 0:02:52.8]} 4.
d3 {[%clk 0:02:55]} 4... Nc6 {[%clk 0:02:52.8]} 5. f4 {[%clk 0:02:53.2]} 5...
Nf6 {[%clk 0:02:41.6]} 6. Nf3 {[%clk 0:02:52.9]} 6... e6 {[%clk 0:02:38.3]} 7.
g3 {[%clk 0:02:46.2]} 7... Be7 {[%clk 0:02:32.9]} 8. Bg2 {[%clk 0:02:46.7]} 8...
O-O {[%clk 0:02:33]} 9. O-O {[%clk 0:02:46.9]} 9... b5 {[%clk 0:02:26.5]} 10. h3
{[%clk 0:02:46.1]} 10... Bd7 {[%clk 0:02:22.6]} 11. g4 {[%clk 0:02:44.2]} 11...
a5 {[%clk 0:01:51]} 12. Ng3 {[%clk 0:02:43]} 12... Qc7 {[%clk 0:01:34.1]} 13. g5
{[%clk 0:02:40.1]} 13... Ne8 {[%clk 0:01:33.2]} 14. h4 {[%clk 0:02:35.2]} 14...
c4 {[%clk 0:00:58.7]} 15. h5 {[%clk 0:02:29.7]} 15... Rc8 {[%clk 0:00:55.9]} 16.
h6 {[%clk 0:02:20.2]} 16... g6 {[%clk 0:00:54.3]} 17. Qe1 {[%clk 0:02:19.5]}
17... Nb4 {[%clk 0:00:47.3]} 18. Qe2 {[%clk 0:02:01.6]} 18... cxd3 {[%clk
0:00:44.1]} 19. cxd3 {[%clk 0:02:02.5]} 19... Qc2 {[%clk 0:00:25.4]} 20. Nxd4
{[%clk 0:02:01.2]} 20... Bc5 {[%clk 0:00:19.8]} 21. Be3 {[%clk 0:01:59.5]} 21...
Qxe2 {[%clk 0:00:18.2]} 22. Ngxe2 {[%clk 0:01:58.6]} 22... Nxd3 {[%clk 0:00:18]}
23. Rf3 {[%clk 0:01:44.8]} 23... Nxb2 {[%clk 0:00:18.1]} 24. f5 {[%clk 0:01:41]}
24... Nc4 {[%clk 0:00:14.8]} 25. Bf2 {[%clk 0:01:40.3]} 25... exf5 {[%clk
0:00:12.7]} 26. exf5 {[%clk 0:01:40.7]} 26... Nd2 {[%clk 0:00:10.8]} 27. Rd3
{[%clk 0:01:37.6]} 27... Nc4 {[%clk 0:00:08.4]} 28. fxg6 {[%clk 0:01:28.4]}
28... hxg6 {[%clk 0:00:04.1]} 29. Nb3 {[%clk 0:01:23.7]} 29... Bxf2+ {[%clk
0:00:03.5]} 30. Kxf2 {[%clk 0:01:24.6]} 30... Bf5 {[%clk 0:00:02.9]} 31. Rd5
{[%clk 0:01:21.5]} 31... Ned6 {[%clk 0:00:03.8]} 32. Nbd4 {[%clk 0:01:18.8]}
32... Bd7 {[%clk 0:00:02.8]} 33. Rd1 {[%clk 0:01:16]} 33... Bc6 {[%clk
0:00:03.4]} 34. Nxc6 {[%clk 0:01:09.6]} 34... Rxc6 {[%clk 0:00:04.3]} 35. Nd4
{[%clk 0:01:09.5]} 35... Rcc8 {[%clk 0:00:03.2]} 36. Nxb5 {[%clk 0:01:09]} 36...
Nxb5 {[%clk 0:00:02.9]} 37. Rxb5 {[%clk 0:01:09.9]} 37... Nb2 {[%clk 0:00:02.2]}
38. Rxb2 {[%clk 0:01:09.6]} 38... Rfe8 {[%clk 0:00:01.5]} 39. Rb7 {[%clk
0:01:09.3]} 39... Rc3 {[%clk 0:00:01.3]} 40. Re1 {[%clk 0:01:05.4]} 40... Rc2+
{[%clk 0:00:01.4]} 41. Kf1 {[%clk 0:01:06]} 41... Rxe1+ {[%clk 0:00:01.4]} 42.
Kxe1 {[%clk 0:01:06.9]} 42... Rxg2 {[%clk 0:00:01.6]} 43. Rb5 {[%clk 0:01:04.6]}
43... Rg1+ {[%clk 0:00:01.5]} 44. Kf2 {[%clk 0:01:04.5]} 44... Rh1 {[%clk
0:00:01.4]} 45. Rxa5 {[%clk 0:01:04.9]} 45... Rh2+ {[%clk 0:00:01.7]} 46. Kg3
{[%clk 0:01:05.1]} 46... Rh5 {[%clk 0:00:02.1]} 47. Kg4 {[%clk 0:01:00.1]} 47...
f5+ {[%clk 0:00:02.4]} 48. Kf4 {[%clk 0:00:59]} 48... Kh7 {[%clk 0:00:01.9]} 49.
Ra7+ {[%clk 0:00:58.7]} 49... Kg8 {[%clk 0:00:02.1]} 50. Rg7+ {[%clk 0:00:58.9]}
50... Kh8 {[%clk 0:00:02.1]} 51. Rxg6 {[%clk 0:00:59.8]} 51... Rh4+ {[%clk
0:00:02.1]} 52. Kxf5 {[%clk 0:01:00.1]} 52... Ra4 {[%clk 0:00:01.7]} 53. Rf6
{[%clk 0:00:57.7]} 53... Rxa2 {[%clk 0:00:01.4]} 54. Kg6 {[%clk 0:00:58.3]}
54... Ra7 {[%clk 0:00:01]} 55. Rf8# {[%clk 0:00:57.8]} 1-0

[Event "Late-Titled-Tuesday-Blitz-May-28-2024"]
[Site "Chess.com"]
[Date "2024.05.28"]
[Round "4"]
[White "RespectfulDaveOnYouTube"]
[Black "djjohnnywoo"]
[Result "1-0"]
[WhiteElo "2480"]
[BlackElo "2138"]
[TimeControl "180+1"]
[EndTime "14:38:46 PDT"]
[Termination "RespectfulDaveOnYouTube won by checkmate"]

1. e4 {[%clk 0:03:00.9]} 1... g6 {[%clk 0:02:46.8]} 2. d4 {[%clk 0:02:46.5]}
2... Bg7 {[%clk 0:02:46.8]} 3. f4 {[%clk 0:02:46.4]} 3... d6 {[%clk 0:02:46.6]}
4. Nf3 {[%clk 0:02:42.9]} 4... c6 {[%clk 0:02:45.9]} 5. Be3 {[%clk 0:02:43]}
5... Bg4 {[%clk 0:02:41.7]} 6. Nbd2 {[%clk 0:02:42.6]} 6... Nd7 {[%clk
0:02:41.5]} 7. c3 {[%clk 0:02:42.3]} 7... Qb6 {[%clk 0:02:39.1]} 8. Qc2 {[%clk
0:02:34.8]} 8... e5 {[%clk 0:02:36.9]} 9. Nc4 {[%clk 0:02:29.9]} 9... Qc7 {[%clk
0:02:35.3]} 10. dxe5 {[%clk 0:02:21.9]} 10... dxe5 {[%clk 0:02:31.2]} 11. O-O-O
{[%clk 0:02:21.8]} 11... Ne7 {[%clk 0:02:09.2]} 12. Nd6+ {[%clk 0:02:11.1]}
12... Kf8 {[%clk 0:02:09.1]} 13. Bc4 {[%clk 0:01:25.5]} 13... Bxf3 {[%clk
0:01:48.9]} 14. gxf3 {[%clk 0:01:24.6]} 14... exf4 {[%clk 0:01:49.1]} 15. Bxf4
{[%clk 0:01:21.4]} 15... Be5 {[%clk 0:01:49]} 16. Bh6+ {[%clk 0:01:20.7]} 16...
Bg7 {[%clk 0:01:44]} 17. Nxf7 {[%clk 0:01:09.2]} 17... Bxh6+ {[%clk 0:01:35.6]}
18. Nxh6 {[%clk 0:01:09.1]} 18... Qf4+ {[%clk 0:01:35.1]} 19. Kb1 {[%clk
0:01:07.7]} 19... Ne5 {[%clk 0:01:29.6]} 20. Be2 {[%clk 0:00:39.7]} 20... Qxh6
{[%clk 0:01:26.5]} 21. f4 {[%clk 0:00:40]} 21... Nf7 {[%clk 0:01:15]} 22. e5
{[%clk 0:00:40.1]} 22... Qh3 {[%clk 0:01:00]} 23. Qb3 {[%clk 0:00:08.1]} 23...
Rb8 {[%clk 0:00:38.6]} 24. e6 {[%clk 0:00:07.5]} 24... Nd8 {[%clk 0:00:34.5]}
25. Bc4 {[%clk 0:00:03.5]} 25... Qf5+ {[%clk 0:00:32.2]} 26. Ka1 {[%clk
0:00:03.6]} 26... b5 {[%clk 0:00:30.9]} 27. Rhe1 {[%clk 0:00:04.1]} 27... Kg7
{[%clk 0:00:28.5]} 28. Bd3 {[%clk 0:00:02.8]} 28... Qf6 {[%clk 0:00:28.2]} 29.
Be4 {[%clk 0:00:02]} 29... c5 {[%clk 0:00:22.6]} 30. Rd6 {[%clk 0:00:01.3]}
30... c4 {[%clk 0:00:21.9]} 31. Qa3 {[%clk 0:00:01.8]} 31... Nb7 {[%clk
0:00:19.7]} 32. Rd7 {[%clk 0:00:01.3]} 32... Qxe6 {[%clk 0:00:15.4]} 33. Rxe7+
{[%clk 0:00:01.2]} 33... Qxe7 {[%clk 0:00:12.5]} 34. Qxe7+ {[%clk 0:00:02.1]}
34... Kh6 {[%clk 0:00:13.1]} 35. Re3 {[%clk 0:00:02.3]} 35... Kh5 {[%clk
0:00:08.2]} 36. Rh3+ {[%clk 0:00:03.2]} 36... Kg4 {[%clk 0:00:06.2]} 37. Qh4#
{[%clk 0:00:04.1]} 1-0

[Event "Late-Titled-Tuesday-Blitz-May-28-2024"]
[Site "Chess.com"]
[Date "2024.05.28"]
[Round "4"]
[White "kemelgallo"]
[Black "RaugintaBulba"]
[Result "1-0"]
[WhiteElo "2693"]
[BlackElo "2429"]
[TimeControl "180+1"]
[EndTime "14:38:53 PDT"]
[Termination "kemelgallo won by resignation"]

1. e4 {[%clk 0:02:56.3]} 1... c5 {[%clk 0:02:20.4]} 2. Nf3 {[%clk 0:02:55.1]}
2... e6 {[%clk 0:02:19.8]} 3. d4 {[%clk 0:02:55.2]} 3... cxd4 {[%clk 0:02:20.7]}
4. Bg5 {[%clk 0:02:55]} 4... f6 {[%clk 0:02:12.2]} 5. Bh4 {[%clk 0:02:54.4]}
5... Qb6 {[%clk 0:02:03.8]} 6. Nbd2 {[%clk 0:02:50.2]} 6... e5 {[%clk
0:01:45.2]} 7. Bc4 {[%clk 0:02:47.4]} 7... Ne7 {[%clk 0:01:41.7]} 8. O-O {[%clk
0:02:45.8]} 8... Ng6 {[%clk 0:01:41.9]} 9. Bg3 {[%clk 0:02:44.2]} 9... Nc6
{[%clk 0:01:39.9]} 10. a3 {[%clk 0:02:39.2]} 10... Qxb2 {[%clk 0:01:29.7]} 11.
Bb3 {[%clk 0:02:27.7]} 11... Na5 {[%clk 0:01:21.4]} 12. Bd5 {[%clk 0:02:22.8]}
12... Bd6 {[%clk 0:01:13.2]} 13. h4 {[%clk 0:02:12.9]} 13... Ne7 {[%clk
0:01:09.8]} 14. Nc4 {[%clk 0:02:12.9]} 14... Nxc4 {[%clk 0:01:08]} 15. Bxc4
{[%clk 0:02:13.8]} 15... a6 {[%clk 0:01:02.1]} 16. Nd2 {[%clk 0:02:02.4]} 16...
b5 {[%clk 0:00:57.1]} 17. Bb3 {[%clk 0:01:59.1]} 17... Qc3 {[%clk 0:00:49.3]}
18. a4 {[%clk 0:01:33.3]} 18... Bb7 {[%clk 0:00:44.5]} 19. axb5 {[%clk
0:01:33.2]} 19... axb5 {[%clk 0:00:45.4]} 20. Rxa8+ {[%clk 0:01:33.6]} 20...
Bxa8 {[%clk 0:00:46]} 21. Qe2 {[%clk 0:01:33.7]} 21... Bc6 {[%clk 0:00:42.5]}
22. h5 {[%clk 0:01:23.4]} 22... Nc8 {[%clk 0:00:29.9]} 23. Bh4 {[%clk
0:01:22.5]} 23... Nb6 {[%clk 0:00:29.4]} 24. h6 {[%clk 0:01:21.4]} 24... g6
{[%clk 0:00:10]} 25. Bxf6 {[%clk 0:01:17.4]} 25... Rf8 {[%clk 0:00:10.6]} 26.
Bg7 {[%clk 0:01:17.8]} 26... Rf4 {[%clk 0:00:10.4]} 27. g3 {[%clk 0:01:15.9]}
27... Rf8 {[%clk 0:00:02.8]} 28. Bxf8 {[%clk 0:01:07]} 28... Bxf8 {[%clk
0:00:03.7]} 29. Nf3 {[%clk 0:01:05.7]} 29... d6 {[%clk 0:00:03.7]} 30. Ng5
{[%clk 0:01:00.6]} 30... Bxh6 {[%clk 0:00:04.1]} 31. Nxh7 {[%clk 0:01:00.7]}
31... Nc4 {[%clk 0:00:02.8]} 32. Nf6+ {[%clk 0:00:58.6]} 32... Ke7 {[%clk
0:00:02.6]} 33. Nd5+ {[%clk 0:00:58.9]} 33... Bxd5 {[%clk 0:00:03]} 34. exd5
{[%clk 0:00:59.4]} 34... Nd2 {[%clk 0:00:03.5]} 35. Rd1 {[%clk 0:00:57.3]} 35...
Nf3+ {[%clk 0:00:03.7]} 36. Kg2 {[%clk 0:00:58]} 36... Ng5 {[%clk 0:00:02.8]}
37. Rh1 {[%clk 0:00:54.9]} 37... Bg7 {[%clk 0:00:02.5]} 38. f4 {[%clk
0:00:53.9]} 38... Nf7 {[%clk 0:00:02.2]} 39. Rh7 {[%clk 0:00:53.4]} 39... Kf8
{[%clk 0:00:02.3]} 40. fxe5 {[%clk 0:00:51.6]} 40... Nxe5 {[%clk 0:00:01.4]} 41.
Rh1 {[%clk 0:00:34.4]} 41... Kg8 {[%clk 0:00:02]} 42. Rf1 {[%clk 0:00:31.5]}
42... Qc5 {[%clk 0:00:02]} 43. Qe4 {[%clk 0:00:30.3]} 43... Qc3 {[%clk
0:00:01.7]} 44. Rf2 {[%clk 0:00:29.6]} 44... Qe1 {[%clk 0:00:01.8]} 45. Qxe1
{[%clk 0:00:29.3]} 45... Ng4 {[%clk 0:00:01.6]} 46. Qe6+ {[%clk 0:00:28.6]}
46... Kh7 {[%clk 0:00:01.2]} 47. Qxg4 {[%clk 0:00:29.5]} 1-0

[Event "Late-Titled-Tuesday-Blitz-May-28-2024"]
[Site "Chess.com"]
[Date "2024.05.28"]
[Round "4"]
[White "OIAM03"]
[Black "sammartin99"]
[Result "0-1"]
[WhiteElo "2034"]
[BlackElo "2299"]
[TimeControl "180+1"]
[EndTime "14:38:53 PDT"]
[Termination "sammartin99 won on time"]

1. e4 {[%clk 0:02:58.7]} 1... e6 {[%clk 0:02:55]} 2. d4 {[%clk 0:02:57.3]} 2...
d5 {[%clk 0:02:55.4]} 3. Nd2 {[%clk 0:02:55.6]} 3... dxe4 {[%clk 0:02:55.1]} 4.
Nxe4 {[%clk 0:02:53.8]} 4... Nd7 {[%clk 0:02:55.9]} 5. Bd3 {[%clk 0:02:51.8]}
5... Ngf6 {[%clk 0:02:55.9]} 6. Nf3 {[%clk 0:02:51.3]} 6... c5 {[%clk
0:02:55.3]} 7. dxc5 {[%clk 0:02:40.6]} 7... Nxc5 {[%clk 0:02:56.2]} 8. Nxf6+
{[%clk 0:02:31.1]} 8... Qxf6 {[%clk 0:02:53.8]} 9. O-O {[%clk 0:02:25]} 9... h6
{[%clk 0:02:24.9]} 10. Be3 {[%clk 0:01:56.9]} 10... a6 {[%clk 0:02:04.3]} 11.
Bd4 {[%clk 0:01:42.6]} 11... Qd8 {[%clk 0:01:59.3]} 12. Re1 {[%clk 0:00:49.3]}
12... Bd7 {[%clk 0:01:43.7]} 13. c3 {[%clk 0:00:26.3]} 13... Bc6 {[%clk
0:01:00.7]} 14. Ne5 {[%clk 0:00:26.1]} 14... Bd5 {[%clk 0:00:55.3]} 15. c4
{[%clk 0:00:24.4]} 15... Bc6 {[%clk 0:00:47.2]} 16. Nxc6 {[%clk 0:00:23.5]}
16... bxc6 {[%clk 0:00:47.3]} 17. Bxc5 {[%clk 0:00:17.7]} 17... Bxc5 {[%clk
0:00:47.1]} 18. Be4 {[%clk 0:00:18.1]} 18... Qb6 {[%clk 0:00:40.8]} 19. Qf3
{[%clk 0:00:17]} 19... O-O {[%clk 0:00:40.7]} 20. Bxc6 {[%clk 0:00:16]} 20...
Bxf2+ {[%clk 0:00:40.5]} 21. Qxf2 {[%clk 0:00:15.3]} 21... Qxc6 {[%clk
0:00:40.8]} 22. b3 {[%clk 0:00:15]} 22... a5 {[%clk 0:00:40]} 23. Rad1 {[%clk
0:00:14.6]} 23... a4 {[%clk 0:00:39.9]} 24. Rd3 {[%clk 0:00:13.4]} 24... axb3
{[%clk 0:00:39.2]} 25. axb3 {[%clk 0:00:13.4]} 25... Rab8 {[%clk 0:00:40]} 26.
Rg3 {[%clk 0:00:11.9]} 26... Qc7 {[%clk 0:00:20.6]} 27. Qd4 {[%clk 0:00:08.7]}
27... f6 {[%clk 0:00:12.2]} 28. Rxe6 {[%clk 0:00:08.4]} 28... Rbd8 {[%clk
0:00:10.9]} 29. Qa1 {[%clk 0:00:03.6]} 29... Ra8 {[%clk 0:00:06.8]} 30. Qe1
{[%clk 0:00:03.1]} 30... Qc5+ {[%clk 0:00:04.7]} 31. Kh1 {[%clk 0:00:03.2]}
31... Qd4 {[%clk 0:00:01.3]} 32. Re7 {[%clk 0:00:02.9]} 32... Rf7 {[%clk
0:00:01.7]} 33. Re8+ {[%clk 0:00:02.5]} 33... Rxe8 {[%clk 0:00:01]} 34. Qxe8+
{[%clk 0:00:02.7]} 34... Kh7 {[%clk 0:00:01.8]} 0-1

[Event "Late-Titled-Tuesday-Blitz-May-28-2024"]
[Site "Chess.com"]
[Date "2024.05.28"]
[Round "4"]
[White "jup1978"]
[Black "Bykov_Egor"]
[Result "1-0"]
[WhiteElo "2434"]
[BlackElo "2632"]
[TimeControl "180+1"]
[EndTime "14:38:56 PDT"]
[Termination "jup1978 won by resignation"]

1. d4 {[%clk 0:03:00.9]} 1... Nf6 {[%clk 0:02:49.4]} 2. Nf3 {[%clk 0:03:00.3]}
2... g6 {[%clk 0:02:47.7]} 3. g3 {[%clk 0:02:58.7]} 3... Bg7 {[%clk 0:02:45.6]}
4. Bg2 {[%clk 0:02:59.6]} 4... d5 {[%clk 0:02:41.3]} 5. O-O {[%clk 0:02:57.2]}
5... O-O {[%clk 0:02:41.3]} 6. b3 {[%clk 0:02:57.8]} 6... Bf5 {[%clk 0:02:36.6]}
7. Bb2 {[%clk 0:02:57.7]} 7... c6 {[%clk 0:02:27.2]} 8. Nbd2 {[%clk 0:02:55.2]}
8... Ne4 {[%clk 0:02:22.2]} 9. Nh4 {[%clk 0:02:53]} 9... Nxd2 {[%clk 0:02:21.5]}
10. Qxd2 {[%clk 0:02:53.9]} 10... Bg4 {[%clk 0:02:13.7]} 11. e4 {[%clk
0:02:45.3]} 11... dxe4 {[%clk 0:02:05.9]} 12. Bxe4 {[%clk 0:02:46.2]} 12... e5
{[%clk 0:02:02.3]} 13. d5 {[%clk 0:02:40.1]} 13... f5 {[%clk 0:01:46]} 14. Bg2
{[%clk 0:02:37.4]} 14... g5 {[%clk 0:01:36.7]} 15. Nf3 {[%clk 0:02:35]} 15...
Bxf3 {[%clk 0:01:31.2]} 16. Bxf3 {[%clk 0:02:35.9]} 16... e4 {[%clk 0:01:30.9]}
17. Bxg7 {[%clk 0:02:34]} 17... Kxg7 {[%clk 0:01:31.8]} 18. Qc3+ {[%clk
0:02:24.1]} 18... Qf6 {[%clk 0:01:06.9]} 19. Qxf6+ {[%clk 0:02:21.7]} 19... Kxf6
{[%clk 0:00:57.2]} 20. dxc6 {[%clk 0:02:21]} 20... Nxc6 {[%clk 0:00:56.8]} 21.
Bg2 {[%clk 0:02:18]} 21... Nd4 {[%clk 0:00:55.5]} 22. c4 {[%clk 0:02:09.7]}
22... Rfd8 {[%clk 0:00:52.5]} 23. Rfd1 {[%clk 0:02:06]} 23... Nc2 {[%clk
0:00:48.4]} 24. Rac1 {[%clk 0:02:04.4]} 24... Nb4 {[%clk 0:00:44.3]} 25. a3
{[%clk 0:01:56.8]} 25... Nd3 {[%clk 0:00:44.8]} 26. Rb1 {[%clk 0:01:54.3]} 26...
Rd4 {[%clk 0:00:33.8]} 27. g4 {[%clk 0:01:47]} 27... Rad8 {[%clk 0:00:28.3]} 28.
gxf5 {[%clk 0:01:46.5]} 28... Kxf5 {[%clk 0:00:25.8]} 29. Bf1 {[%clk 0:01:45.3]}
29... Ne5 {[%clk 0:00:24.3]} 30. Be2 {[%clk 0:01:38.7]} 30... Rd2 {[%clk
0:00:19]} 31. Kf1 {[%clk 0:01:37.4]} 31... Kf4 {[%clk 0:00:17.4]} 32. Rxd2
{[%clk 0:01:35.6]} 32... Rxd2 {[%clk 0:00:18.3]} 33. b4 {[%clk 0:01:34]} 33...
Nf3 {[%clk 0:00:12.9]} 34. h3 {[%clk 0:01:26.8]} 34... Nd4 {[%clk 0:00:10.8]}
35. Rd1 {[%clk 0:01:22.3]} 35... e3 {[%clk 0:00:07.4]} 36. fxe3+ {[%clk
0:01:17.9]} 36... Kxe3 {[%clk 0:00:08.3]} 37. Rxd2 {[%clk 0:01:18.5]} 37... Kxd2
{[%clk 0:00:09.2]} 38. Bg4 {[%clk 0:01:16.8]} 38... h6 {[%clk 0:00:05.3]} 39. c5
{[%clk 0:01:16.9]} 39... Nc2 {[%clk 0:00:05.4]} 40. Bf3 {[%clk 0:01:17.2]} 40...
Nxa3 {[%clk 0:00:02.8]} 41. Bxb7 {[%clk 0:01:17.5]} 41... Nb5 {[%clk 0:00:01.9]}
42. Bc6 {[%clk 0:01:12.6]} 42... Nc7 {[%clk 0:00:01.6]} 43. b5 {[%clk
0:01:12.4]} 43... Kc3 {[%clk 0:00:01]} 44. b6 {[%clk 0:01:12.7]} 44... axb6
{[%clk 0:00:01.7]} 45. cxb6 {[%clk 0:01:12.9]} 45... Na6 {[%clk 0:00:02.4]} 46.
Kf2 {[%clk 0:01:08.9]} 46... Nb8 {[%clk 0:00:03]} 47. Bg2 {[%clk 0:01:07.1]}
47... Kb4 {[%clk 0:00:03.5]} 48. Kg3 {[%clk 0:01:06.4]} 48... Kc5 {[%clk
0:00:03.9]} 49. b7 {[%clk 0:01:06.6]} 49... Kb6 {[%clk 0:00:04.4]} 50. Kg4
{[%clk 0:01:07.2]} 50... Kc7 {[%clk 0:00:04.3]} 51. Kh5 {[%clk 0:01:07]} 51...
Nd7 {[%clk 0:00:04.9]} 52. Kxh6 {[%clk 0:01:06.9]} 52... g4 {[%clk 0:00:04.2]}
53. hxg4 {[%clk 0:01:06.1]} 53... Ne5 {[%clk 0:00:04.1]} 54. g5 {[%clk
0:01:05.2]} 54... Ng4+ {[%clk 0:00:04.4]} 55. Kh7 {[%clk 0:01:03.7]} 55... Ne3
{[%clk 0:00:05.3]} 56. Be4 {[%clk 0:01:02.9]} 56... Ng4 {[%clk 0:00:05.1]} 57.
Bh1 {[%clk 0:00:58.7]} 57... Ne5 {[%clk 0:00:03.4]} 58. g6 {[%clk 0:00:58.3]}
58... Nxg6 {[%clk 0:00:01.7]} 59. Kxg6 {[%clk 0:00:58.1]} 59... Kb8 {[%clk
0:00:02.6]} 60. Kf7 {[%clk 0:00:58.6]} 60... Kc7 {[%clk 0:00:03]} 61. Ke6 {[%clk
0:00:59]} 61... Kb8 {[%clk 0:00:03.9]} 62. Kd7 {[%clk 0:00:59.4]} 62... Ka7
{[%clk 0:00:04.3]} 1-0

[Event "Late-Titled-Tuesday-Blitz-May-28-2024"]
[Site "Chess.com"]
[Date "2024.05.28"]
[Round "4"]
[White "Abund"]
[Black "hansen"]
[Result "0-1"]
[WhiteElo "2813"]
[BlackElo "3063"]
[TimeControl "180+1"]
[EndTime "14:38:58 PDT"]
[Termination "hansen won by resignation"]

1. e4 {[%clk 0:03:00.9]} 1... c5 {[%clk 0:02:56.9]} 2. Nf3 {[%clk 0:03:01]} 2...
e6 {[%clk 0:02:53.8]} 3. c3 {[%clk 0:03:01.1]} 3... Nf6 {[%clk 0:02:53.3]} 4. e5
{[%clk 0:03:01.4]} 4... Nd5 {[%clk 0:02:54]} 5. g3 {[%clk 0:03:01.9]} 5... d6
{[%clk 0:02:45.8]} 6. exd6 {[%clk 0:03:01.7]} 6... Nc6 {[%clk 0:02:44.6]} 7. Bg2
{[%clk 0:02:57.6]} 7... Bxd6 {[%clk 0:02:40.6]} 8. O-O {[%clk 0:02:56.5]} 8...
O-O {[%clk 0:02:40.8]} 9. d4 {[%clk 0:02:57]} 9... h6 {[%clk 0:02:24.8]} 10. c4
{[%clk 0:02:47.9]} 10... Nf6 {[%clk 0:02:23.5]} 11. Nc3 {[%clk 0:02:39.6]} 11...
a6 {[%clk 0:02:23.5]} 12. b3 {[%clk 0:02:09.4]} 12... Qa5 {[%clk 0:01:36.9]} 13.
Bd2 {[%clk 0:01:42.8]} 13... cxd4 {[%clk 0:01:26.1]} 14. Nb5 {[%clk 0:01:15]}
14... Qd8 {[%clk 0:01:06.3]} 15. Nbxd4 {[%clk 0:01:06.3]} 15... Nxd4 {[%clk
0:01:05.8]} 16. Nxd4 {[%clk 0:01:06.7]} 16... e5 {[%clk 0:01:06.4]} 17. Nc2
{[%clk 0:01:00.9]} 17... Bg4 {[%clk 0:01:05.4]} 18. Qc1 {[%clk 0:00:59.5]} 18...
Qc7 {[%clk 0:00:53.7]} 19. Ne3 {[%clk 0:00:42.5]} 19... Be6 {[%clk 0:00:53.1]}
20. Bc3 {[%clk 0:00:41.7]} 20... Rac8 {[%clk 0:00:48.5]} 21. a4 {[%clk
0:00:31.5]} 21... a5 {[%clk 0:00:36.9]} 22. Qb2 {[%clk 0:00:30.8]} 22... b6
{[%clk 0:00:21.7]} 23. Kh1 {[%clk 0:00:30.5]} 23... Rfe8 {[%clk 0:00:21.5]} 24.
Rad1 {[%clk 0:00:21.4]} 24... Bd7 {[%clk 0:00:20.7]} 25. f4 {[%clk 0:00:14.5]}
25... exf4 {[%clk 0:00:16.1]} 26. Bxf6 {[%clk 0:00:14.6]} 26... fxe3 {[%clk
0:00:15.5]} 27. Bxg7 {[%clk 0:00:03.5]} 27... e2 {[%clk 0:00:15.3]} 28. Bxh6
{[%clk 0:00:03.5]} 28... exf1=Q+ {[%clk 0:00:12.4]} 29. Rxf1 {[%clk 0:00:03.2]}
29... Be5 {[%clk 0:00:12.2]} 30. Qd2 {[%clk 0:00:01.6]} 30... Qd6 {[%clk
0:00:10.6]} 31. Qg5+ {[%clk 0:00:01.5]} 31... Qg6 {[%clk 0:00:10]} 32. Qh4
{[%clk 0:00:02.1]} 32... Bc6 {[%clk 0:00:09.4]} 33. Bg5 {[%clk 0:00:01.2]} 33...
Bxg2+ {[%clk 0:00:08.9]} 34. Kxg2 {[%clk 0:00:02.1]} 34... Rc6 {[%clk
0:00:08.8]} 35. Be3 {[%clk 0:00:02.2]} 35... Bg7 {[%clk 0:00:06.2]} 36. Rf3
{[%clk 0:00:02.4]} 36... Rce6 {[%clk 0:00:06]} 37. Qf4 {[%clk 0:00:02.8]} 37...
Re4 {[%clk 0:00:06.1]} 38. Qc7 {[%clk 0:00:02.1]} 38... Rxe3 {[%clk 0:00:05.9]}
39. Rxe3 {[%clk 0:00:02.1]} 39... Rxe3 {[%clk 0:00:06.8]} 40. Qb8+ {[%clk
0:00:02]} 40... Bf8 {[%clk 0:00:07.2]} 41. Qf4 {[%clk 0:00:02.7]} 41... Qe4+
{[%clk 0:00:07.4]} 0-1

[Event "Late-Titled-Tuesday-Blitz-May-28-2024"]
[Site "Chess.com"]
[Date "2024.05.28"]
[Round "4"]
[White "nindjaxx8"]
[Black "Kielinkei"]
[Result "1-0"]
[WhiteElo "2643"]
[BlackElo "2442"]
[TimeControl "180+1"]
[EndTime "14:38:58 PDT"]
[Termination "nindjaxx8 won by checkmate"]

1. d4 {[%clk 0:03:00.9]} 1... Nf6 {[%clk 0:02:59.7]} 2. c4 {[%clk 0:02:55.4]}
2... e6 {[%clk 0:02:59.7]} 3. Nc3 {[%clk 0:02:54.2]} 3... Bb4 {[%clk 0:02:59.8]}
4. Qc2 {[%clk 0:02:54.4]} 4... d5 {[%clk 0:02:58.9]} 5. cxd5 {[%clk 0:02:53.7]}
5... exd5 {[%clk 0:02:59.1]} 6. Nf3 {[%clk 0:02:53.2]} 6... O-O {[%clk
0:02:55.8]} 7. Bg5 {[%clk 0:02:53]} 7... c6 {[%clk 0:02:52.9]} 8. e3 {[%clk
0:02:51.9]} 8... h6 {[%clk 0:02:47.9]} 9. Bh4 {[%clk 0:02:46.3]} 9... Be7 {[%clk
0:02:33.5]} 10. Bd3 {[%clk 0:02:45.9]} 10... Re8 {[%clk 0:02:33.7]} 11. O-O
{[%clk 0:02:45.8]} 11... Ne4 {[%clk 0:02:30.6]} 12. Bxe4 {[%clk 0:02:25.1]}
12... dxe4 {[%clk 0:02:23.9]} 13. Qxe4 {[%clk 0:02:15.9]} 13... Nd7 {[%clk
0:02:09.6]} 14. Bxe7 {[%clk 0:02:13.6]} 14... Rxe7 {[%clk 0:02:10.2]} 15. Qc2
{[%clk 0:02:13.4]} 15... Nf6 {[%clk 0:02:09.9]} 16. h3 {[%clk 0:02:04.7]} 16...
Be6 {[%clk 0:02:05.2]} 17. Rfe1 {[%clk 0:02:00.5]} 17... g6 {[%clk 0:01:47]} 18.
Rad1 {[%clk 0:01:57.8]} 18... Kg7 {[%clk 0:01:46.4]} 19. e4 {[%clk 0:01:57.1]}
19... Rd7 {[%clk 0:01:29.5]} 20. b3 {[%clk 0:01:56.4]} 20... Rc8 {[%clk
0:01:17]} 21. Rd2 {[%clk 0:01:51.8]} 21... g5 {[%clk 0:01:12.7]} 22. Red1 {[%clk
0:01:50.5]} 22... g4 {[%clk 0:01:10.1]} 23. hxg4 {[%clk 0:01:49.6]} 23... Bxg4
{[%clk 0:01:09.7]} 24. Qb2 {[%clk 0:01:30.9]} 24... Bxf3 {[%clk 0:01:05.3]} 25.
gxf3 {[%clk 0:01:31.8]} 25... Nh5 {[%clk 0:01:05.5]} 26. d5 {[%clk 0:01:23.5]}
26... Qg5+ {[%clk 0:01:00.3]} 27. Kf1 {[%clk 0:01:23.3]} 27... Nf4 {[%clk
0:00:52.4]} 28. Ne2+ {[%clk 0:01:23.2]} 28... Kh7 {[%clk 0:00:51]} 29. Nxf4
{[%clk 0:01:23.3]} 29... Qxf4 {[%clk 0:00:51.9]} 30. Ke2 {[%clk 0:01:10.6]}
30... cxd5 {[%clk 0:00:45.9]} 31. Rxd5 {[%clk 0:01:11.5]} 31... Rdc7 {[%clk
0:00:44.1]} 32. R1d2 {[%clk 0:01:01]} 32... Rc3 {[%clk 0:00:39.5]} 33. R5d3
{[%clk 0:00:54.3]} 33... Rxd3 {[%clk 0:00:38.4]} 34. Rxd3 {[%clk 0:00:55.2]}
34... h5 {[%clk 0:00:38.8]} 35. Rd5 {[%clk 0:00:53.8]} 35... Re8 {[%clk
0:00:22.7]} 36. Rxh5+ {[%clk 0:00:45.9]} 36... Kg6 {[%clk 0:00:23.1]} 37. Rh3
{[%clk 0:00:38.2]} 37... f5 {[%clk 0:00:22.2]} 38. Rg3+ {[%clk 0:00:38.2]} 38...
Kh5 {[%clk 0:00:18.4]} 39. Qb1 {[%clk 0:00:14.6]} 39... Qh4 {[%clk 0:00:09.6]}
40. Qc1 {[%clk 0:00:06.4]} 40... fxe4 {[%clk 0:00:06.2]} 41. Qc5+ {[%clk
0:00:06.5]} 41... Kh6 {[%clk 0:00:06.6]} 42. Qd6+ {[%clk 0:00:06.7]} 42... Kh7
{[%clk 0:00:03.2]} 43. Qg6+ {[%clk 0:00:07.1]} 43... Kh8 {[%clk 0:00:03.8]} 44.
Qg7# {[%clk 0:00:08]} 1-0